bitfinex/quotes_ETHUSD_20250430
["timestamp","ask_amount","ask_price","bid_price","bid_amount"]
[1746016020837,5.55821495,1799.2,1798.7,7.66378503]
[1746016021045,11.11653751,1799.2,1798.8,5.55916765]
[1746016021209,5.97366745,1799.2,1798.8,5.55916765]
[1746016021647,0.4154525,1799.2,1798.9,5.55893227]
[1746016021858,0.4154525,1799.2,1798.7,2.10431726]
[1746016021859,5.55862112,1799.1,1799.0,5.18]
[1746016022038,6.67724765,1799.1,1799.0,5.18]
[1746016022228,5.55862112,1799.1,1799.0,5.18]
[1746016023053,5.55833472,1799.1,1799.0,5.18]
[1746016023371,13.74863915,1799.4,1798.7,0.7885]
[1746016023372,5.55891112,1799.0,1798.7,0.7885]
[1746016023513,5.55891112,1799.0,1798.5,5.56006858]
[1746016023514,9.33404369,1799.0,1798.9,5.106]
[1746016023711,5.55966321,1798.7,1798.4,0.7998]
[1746016024025,5.55940942,1798.8,1798.5,5.106]
[1746016025249,5.55940942,1798.8,1798.5,10.66613916]
[1746016025446,5.55908948,1798.9,1798.6,5.55984631]
[1746016026753,5.55849624,1799.1,1798.7,6.32506358]
[1746016026929,5.55874612,1799.0,1798.7,0.7656]
[1746016027131,5.56122699,1798.2,1797.8,11.43380728]
[1746016027457,5.56129437,1798.2,1797.8,5.8716]
[1746016027681,5.5620446,1797.9,1797.8,5.106]
[1746016028191,0.7963,1798.3,1797.8,5.106]
[1746016028346,5.56142594,1798.1,1797.8,5.6166]
[1746016028548,5.56176446,1798.0,1797.8,5.6166]
[1746016028779,5.56142594,1798.1,1797.8,5.6166]
[1746016029087,5.56175224,1798.0,1797.8,5.6166]
[1746016029474,5.5615428,1798.1,1797.8,5.6166]
[1746016029694,11.12327763,1798.1,1797.8,5.6166]
[1746016029895,5.5615428,1798.1,1797.8,5.6166]
[1746016030097,5.56121362,1798.2,1797.9,0.56166]
[1746016030489,5.56060044,1798.4,1798.0,5.56150312]
[1746016031903,5.56093227,1798.3,1797.9,6.1236592]
[1746016032265,5.56093227,1798.3,1797.9,6.12348399]
[1746016032593,5.56093609,1798.3,1797.9,11.68543212]
[1746016032787,5.5606823,1798.4,1798.0,6.73022242]
[1746016032788,5.56066926,1798.4,1798.0,6.73022242]
[1746016033158,11.12145835,1798.4,1798.0,6.73022242]
[1746016033357,5.56084775,1798.3,1798.0,6.73022242]
[1746016033793,5.56011366,1798.6,1798.1,5.56130854]
[1746016034090,5.56019777,1798.5,1798.2,5.107]
[1746016034389,8.56008204,1798.6,1798.3,5.107]
[1746016034690,8.56003881,1798.6,1798.3,5.107]
[1746016035388,5.55973636,1798.7,1798.3,10.66770815]
[1746016035593,11.1195695,1798.7,1798.3,10.66770815]
[1746016035755,5.55973636,1798.7,1798.3,10.66770815]
[1746016035958,5.55973636,1798.7,1798.4,1.06677081]
[1746016036251,5.56007339,1798.6,1798.4,1.06677081]
[1746016036452,5.56006925,1798.6,1798.3,5.107]
[1746016036866,5.56022493,1798.5,1798.3,5.107]
[1746016037492,5.56008683,1798.6,1798.3,5.107]
[1746016037692,5.56008683,1798.6,1798.3,6.51967298]
[1746016037993,5.56034137,1798.5,1798.3,6.51967298]
[1746016038355,5.56010273,1798.6,1798.3,6.51967298]
[1746016038591,5.56028067,1798.5,1798.3,6.51967298]
[1746016038797,5.56034591,1798.5,1798.3,6.51967298]
[1746016038957,11.12079291,1798.5,1798.3,6.51967298]
[1746016039158,5.56034591,1798.5,1798.3,6.51967298]
[1746016039597,5.55984842,1798.7,1798.4,0.6519673]
[1746016039894,5.55939873,1798.8,1798.4,6.21232858]
[1746016040060,5.55939873,1798.8,1798.4,0.6519673]
[1746016040261,5.55970635,1798.7,1798.4,0.6519673]
[1746016041266,5.55979482,1798.7,1798.4,0.6519673]
[1746016042097,3.70957153,1799.6,1798.4,0.6519673]
[1746016042286,5.55848516,1799.1,1798.5,5.56018904]
[1746016042600,5.55864815,1799.0,1798.7,5.55935322]
[1746016042839,5.55864815,1799.0,1798.8,5.107]
[1746016044041,5.55895269,1798.9,1798.8,5.107]
[1746016046303,5.86389095,1798.9,1798.8,5.107]
[1746016046519,7.00627836,1798.9,1798.8,5.106]
[1746016046851,6.3722417,1798.9,1798.8,5.106]
[1746016047016,1.32140782,1798.9,1798.8,5.106]
[1746016047212,6.88036051,1798.9,1798.8,5.106]
[1746016047423,6.067205,1798.9,1798.8,5.106]
[1746016047631,0.50825231,1798.9,1798.8,5.106]
[1746016047852,0.50825231,1798.9,1798.8,10.66526173]
[1746016048154,5.55843117,1799.1,1798.8,12.28773189]
[1746016048445,5.55843117,1799.1,1798.8,6.72847016]
[1746016048752,5.55843117,1799.1,1798.8,5.106]
[1746016050657,5.97352,1799.2,1798.8,5.106]
[1746016050863,5.97340282,1799.2,1798.9,5.55883686]
[1746016051149,5.55788232,1799.3,1798.9,11.11756693]
[1746016051312,5.55760192,1799.4,1799.0,6.6702013]
[1746016051515,5.55696922,1799.6,1799.2,5.55789085]
[1746016051726,6.06539998,1799.5,1799.3,5.106]
[1746016052151,0.50819765,1799.5,1799.3,5.106]
[1746016052664,5.55696922,1799.6,1799.3,5.106]
[1746016053937,5.55696922,1799.6,1799.3,6.17238016]
[1746016054371,3.70957153,1799.7,1799.4,5.55731537]
[1746016054571,3.70957153,1799.7,1799.6,5.55679039]
[1746016055070,3.70957153,1800.0,1799.7,5.55638287]
[1746016055230,3.70957153,1800.0,1799.8,5.041]
[1746016056272,9.26512815,1800.0,1799.8,5.041]
[1746016056636,3.70957153,1800.0,1799.8,5.041]
[1746016056831,3.70957153,1800.0,1799.8,5.5451]
[1746016057431,9.26521732,1800.0,1799.8,5.5451]
[1746016057970,3.70957153,1800.0,1799.8,5.5451]
[1746016059373,5.55525143,1800.1,1799.8,5.5451]
[1746016059568,5.55568063,1800.0,1799.8,5.5451]
[1746016060068,5.55543634,1800.1,1799.8,5.5451]
[1746016060270,5.55543634,1800.1,1799.8,5.041]
[1746016061229,5.55543873,1800.1,1799.8,5.041]
[1746016061435,5.55575392,1800.0,1799.8,5.041]
[1746016062071,11.11161228,1800.0,1799.8,5.041]
[1746016062272,5.55586421,1799.9,1799.8,5.041]
[1746016063950,5.55575392,1800.0,1799.8,5.041]
[1746016064676,5.96768903,1800.2,1799.8,5.5451]
[1746016064977,5.55525093,1800.1,1799.8,5.5451]
[1746016065782,5.96776172,1800.2,1799.8,5.5451]
[1746016065955,5.55534419,1800.1,1799.8,5.5451]
[1746016067077,5.55514482,1800.2,1799.8,5.5451]
[1746016067464,5.55514482,1800.2,1799.9,0.55451]
[1746016067668,11.11032103,1800.2,1799.9,0.55451]
[1746016067868,5.55514482,1800.2,1799.9,0.55451]
[1746016068186,11.11001012,1800.2,1800.0,5.039]
[1746016068372,5.55524693,1800.1,1800.0,5.039]
[1746016069291,5.96751702,1800.2,1800.0,5.039]
[1746016069488,5.55524693,1800.1,1800.0,5.039]
[1746016069791,11.52274371,1800.2,1800.0,5.039]
[1746016069998,5.55524693,1800.1,1800.0,5.039]
[1746016071299,11.52270079,1800.2,1800.0,5.039]
[1746016071453,5.55524693,1800.1,1800.0,5.039]
[1746016073592,5.96751702,1800.2,1800.0,5.039]
[1746016073999,5.55481435,1800.3,1800.0,5.5429]
[1746016075268,5.55482779,1800.3,1800.0,5.5429]
[1746016079308,5.55495606,1800.2,1800.0,5.5429]
[1746016079706,5.55482779,1800.3,1800.0,5.5429]
[1746016080584,5.55510674,1800.2,1800.0,5.039]
[1746016080790,5.55524693,1800.1,1800.0,5.039]
[1746016081714,0.50980704,1800.1,1800.0,5.039]
[1746016081899,0.815419,1800.1,1800.0,5.039]
[1746016082513,0.30561196,1800.1,1800.0,5.039]
[1746016083626,6.37134786,1800.1,1800.0,5.039]
[1746016084703,0.81610093,1800.1,1800.0,5.039]
[1746016085100,1.32684582,1800.1,1800.0,5.039]
[1746016085302,1.32684582,1800.1,1800.0,5.5429]
[1746016087301,0.81635685,1800.1,1800.0,5.5429]
[1746016088038,1.32720998,1800.1,1800.0,5.5429]
[1746016088762,0.81635685,1800.1,1800.0,5.5429]
[1746016090021,0.30561196,1800.1,1800.0,5.5429]
[1746016090335,0.30561196,1800.1,1800.0,5.039]
[1746016090537,5.86085889,1800.1,1800.0,5.039]
[1746016090838,5.86085889,1800.1,1799.6,11.11317095]
[1746016091039,5.5557709,1800.0,1799.5,5.55697549]
[1746016091235,5.86138286,1800.0,1799.6,0.55569755]
[1746016091648,5.55586679,1799.9,1799.6,0.55569755]
[1746016091818,5.55619151,1799.8,1799.6,0.55569755]
[1746016092016,5.55619151,1799.8,1799.4,23.896365]
[1746016092223,5.55586421,1799.9,1799.4,18.339]
[1746016092468,5.55665697,1799.7,1799.4,18.339]
[1746016092779,5.55665697,1799.7,1799.5,4.942]
[1746016092963,5.55665697,1799.7,1799.5,7.2701]
[1746016093170,5.55709919,1799.5,1797.8,5.56235398]
[1746016093463,5.55709919,1799.5,1798.4,5.56034995]
[1746016093464,5.558954,1798.9,1798.4,5.56034995]
[1746016093671,5.558954,1798.9,1798.5,0.556035]
[1746016094332,3.0,1799.2,1798.5,0.556035]
[1746016094651,5.55883042,1799.0,1798.5,5.56015562]
[1746016095859,5.55841341,1799.1,1798.6,5.55975928]
[1746016097144,5.55782094,1799.3,1798.7,5.55946375]
[1746016097316,5.55797758,1799.3,1798.8,5.55918516]
[1746016098157,5.97514057,1799.5,1798.9,5.55885105]
[1746016098358,5.55741854,1799.4,1799.0,0.55588511]
[1746016098662,11.11507644,1799.4,1799.0,0.55588511]
[1746016098823,5.55741854,1799.4,1799.0,0.55588511]
[1746016099292,0.06946995,1799.3,1797.8,18.338]
[1746016099441,0.06946995,1799.3,1798.0,5.56172902]
[1746016099442,8.55850724,1799.1,1798.0,5.56172902]
[1746016099646,5.56002327,1798.6,1798.0,5.56147627]
[1746016099866,5.56014526,1798.6,1798.1,5.5614258]
[1746016100068,5.56014526,1798.6,1798.2,0.55614258]
[1746016100269,3.70181364,1799.1,1798.2,0.55614258]
[1746016100472,5.56060582,1798.4,1797.8,23.90016331]
[1746016100647,5.56080936,1798.3,1797.8,23.90016331]
[1746016101288,5.56060582,1798.4,1797.9,5.56201369]
[1746016101661,5.56060582,1798.4,1797.9,5.56185698]
[1746016101875,5.56060582,1798.4,1797.9,5.56184995]
[1746016102194,5.5604185,1798.5,1798.0,5.56171931]
[1746016102361,5.55969206,1798.7,1798.2,5.56099551]
[1746016103082,5.56124862,1798.2,1797.8,18.338]
[1746016103792,5.56163009,1798.1,1797.8,18.338]
[1746016103946,5.56186675,1798.0,1797.8,18.338]
[1746016104143,5.56158176,1798.1,1797.8,18.338]
[1746016105193,5.97059533,1798.1,1797.8,18.338]
[1746016105482,0.40901357,1798.1,1797.8,18.338]
[1746016105684,5.56129001,1798.2,1797.8,18.338]
[1746016105873,5.56144013,1798.1,1797.8,18.338]
[1746016106389,5.56128409,1798.2,1797.8,20.7280647]
[1746016106882,5.56080793,1798.3,1797.9,5.56191101]
[1746016107289,5.56058214,1798.4,1797.9,5.56191101]
[1746016107450,8.98042436,1798.5,1797.8,20.7280647]
[1746016107451,5.56122105,1798.2,1797.8,20.7280647]
[1746016107888,5.56122105,1798.2,1797.8,18.338]
[1746016108188,5.56130571,1798.2,1797.8,18.338]
[1746016108589,5.56130571,1798.2,1797.8,23.90031744]
[1746016108994,5.56130571,1798.2,1797.8,18.338]
[1746016109195,5.5609589,1798.3,1797.8,23.90029301]
[1746016109368,5.5609589,1798.3,1797.8,26.84658821]
[1746016109755,5.5609589,1798.3,1797.8,32.40874854]
[1746016109955,5.5609589,1798.3,1797.9,5.56203968]
[1746016110189,5.56066381,1798.4,1797.9,5.57621529]
[1746016110388,5.56066381,1798.4,1797.9,8.80411955]
[1746016110597,5.56066381,1798.4,1798.0,5.56164213]
[1746016110752,5.56084154,1798.3,1797.8,5.56221631]
[1746016110954,5.56084154,1798.3,1797.8,11.12436169]
[1746016111390,11.12193694,1798.3,1797.8,5.56214538]
[1746016111592,11.12190733,1798.3,1797.8,5.56214538]
[1746016111804,5.56142054,1798.2,1797.8,5.56232405]
[1746016112260,6.67318622,1798.3,1797.8,5.56232405]
[1746016112783,5.5611441,1798.2,1797.8,5.56232405]
[1746016113092,6.67318622,1798.3,1797.7,5.56247989]
[1746016113270,6.67318622,1798.3,1797.8,5.56212087]
[1746016113470,12.23429517,1798.3,1797.8,6.11832273]
[1746016113695,5.56111723,1798.2,1797.8,6.11832273]
[1746016114189,5.56100932,1798.3,1797.9,5.56195475]
[1746016114409,5.56068942,1798.4,1797.9,5.56183418]
[1746016114696,5.56068942,1798.4,1797.9,5.56185327]
[1746016114998,5.56068942,1798.4,1797.9,6.72987657]
[1746016115196,5.98045994,1798.5,1798.0,5.56156966]
[1746016115497,5.98045994,1798.5,1798.1,5.56137265]
[1746016115697,5.98045994,1798.5,1798.0,5.56156966]
[1746016115896,0.42009479,1798.5,1798.1,5.56118]
[1746016116102,5.5602146,1798.5,1798.1,5.56118]
[1746016116294,5.5602146,1798.5,1798.0,6.79071234]
[1746016116600,5.5602146,1798.5,1798.1,5.56136866]
[1746016117087,5.5602146,1798.5,1798.0,5.56156563]
[1746016117287,5.5602146,1798.5,1798.1,5.56138075]
[1746016117599,14.12016001,1798.6,1798.1,5.56138075]
[1746016117845,5.56038539,1798.5,1798.1,5.5614146]
[1746016118176,8.55992971,1798.6,1798.1,5.56127878]
[1746016118377,1.41196172,1798.6,1798.2,5.56102762]
[1746016118574,5.55961179,1798.7,1798.2,5.56102762]
[1746016118901,5.5602771,1798.5,1798.1,5.56127878]
[1746016119097,5.55992157,1798.6,1798.1,5.56122483]
[1746016119265,11.12007265,1798.6,1798.1,5.56122483]
[1746016120167,5.56022767,1798.5,1798.1,5.56122483]
[1746016120712,11.12099644,1798.4,1797.9,18.356]
[1746016120924,5.56148691,1798.1,1797.9,18.356]
[1746016121121,5.56287444,1797.7,1797.2,5.56404411]
[1746016121272,5.56287444,1797.7,1797.3,0.55640441]
[1746016121471,5.46287444,1797.7,1797.3,0.55640441]
[1746016122574,5.46287444,1797.7,1797.3,6.12029686]
[1746016123008,5.56254882,1797.8,1797.3,6.12029686]
[1746016123226,1.76882856,1798.5,1797.4,0.01421092]
[1746016123514,5.56114892,1798.2,1797.7,5.56236833]
[1746016123726,5.56147682,1798.1,1797.6,5.56283674]
[1746016123927,0.42734935,1798.2,1797.4,5.56343028]
[1746016123928,5.5623188,1797.9,1797.4,5.56343028]
[1746016124089,5.56279375,1797.7,1797.3,0.55640441]
[1746016124288,5.56284061,1797.7,1797.3,0.55640441]
[1746016124524,5.56255755,1797.8,1797.3,6.12027702]
[1746016124693,0.42050575,1797.7,1797.3,6.12027702]
[1746016125015,6.67503621,1797.8,1797.3,6.12027702]
[1746016125016,1.11247866,1797.8,1797.4,5.56359033]
[1746016125200,11.12453326,1797.9,1797.4,5.56359033]
[1746016125373,5.56222272,1797.9,1797.4,5.56359033]
[1746016125577,3.0,1798.2,1797.1,0.15091403]
[1746016125779,5.56398467,1797.3,1797.1,0.15091403]
[1746016126195,5.5637744,1797.4,1797.1,0.15091403]
[1746016126475,3.0,1797.9,1797.1,0.15091403]
[1746016126778,5.56331068,1797.5,1797.1,0.15091403]
[1746016126978,4.89479168,1797.5,1797.1,5.71539675]
[1746016127179,5.56314173,1797.6,1797.1,5.71539675]
[1746016127379,5.56331011,1797.5,1797.1,5.71539675]
[1746016127628,5.56361952,1797.4,1797.1,0.15091403]
[1746016127916,5.56331011,1797.5,1797.1,0.15091403]
[1746016128215,5.56331011,1797.5,1797.1,0.72247715]
[1746016128416,11.5351488,1797.6,1797.1,6.28689913]
[1746016128610,5.56330912,1797.5,1797.1,6.28689913]
[1746016128911,11.12687798,1797.5,1797.1,0.72247715]
[1746016129125,11.12688059,1797.5,1797.1,0.72247715]
[1746016129280,5.56359818,1797.4,1797.1,0.72247715]
[1746016129478,5.56359818,1797.4,1797.1,0.15091403]
[1746016130043,5.56404542,1797.3,1797.1,0.15091403]
[1746016130210,5.56421099,1797.2,1797.1,0.15091403]
[1746016130724,5.56404542,1797.3,1797.1,0.15091403]
[1746016131207,5.56370403,1797.4,1797.1,0.15091403]
[1746016131381,5.56391262,1797.3,1797.1,0.15091403]
[1746016131713,5.56341332,1797.5,1797.1,0.15091403]
[1746016132110,5.56377772,1797.4,1797.1,0.15091403]
[1746016132312,5.5639536,1797.3,1797.1,0.15091403]
[1746016133324,5.56377772,1797.4,1797.1,0.15091403]
[1746016133643,5.56544968,1796.8,1796.7,0.03833024]
[1746016133986,5.63502925,1796.8,1796.7,0.03833024]
[1746016134222,6.14264258,1796.8,1796.7,0.03833024]
[1746016134430,6.86027431,1796.8,1796.7,0.03833024]
[1746016134920,6.79069474,1796.8,1796.7,0.03833024]
[1746016135286,0.92100375,1796.8,1796.7,0.03833024]
[1746016135480,0.41339042,1796.8,1796.7,0.03833024]
[1746016135685,5.56527145,1796.9,1796.7,0.03833024]
[1746016135938,5.56527145,1796.9,1796.7,1e-08]
[1746016135939,3.55652715,1796.8,1796.7,1e-08]
[1746016136095,5.56730876,1796.2,1796.1,0.4132522]
[1746016136422,5.63691278,1796.2,1796.1,0.4132522]
[1746016136796,5.94034633,1796.2,1796.1,0.4132522]
[1746016137195,6.36637733,1796.2,1796.1,0.4132522]
[1746016137520,10.55972693,1796.2,1796.1,0.4132522]
[1746016137721,0.30343355,1796.2,1796.1,0.4132522]
[1746016137930,5.87074231,1796.2,1796.1,0.4132522]
[1746016138110,5.63691459,1796.2,1796.1,0.4132522]
[1746016139020,6.06294559,1796.2,1796.1,0.4132522]
[1746016139589,6.06294559,1796.2,1796.1,0.52105827]
[1746016140191,5.56730876,1796.2,1796.1,0.52105827]
[1746016140941,6.68076587,1796.2,1796.1,0.52105827]
[1746016141092,6.68076587,1796.2,1796.1,0.4132522]
[1746016141293,6.68076587,1796.2,1796.1,0.54467865]
[1746016143647,5.63690937,1796.2,1796.1,0.54467865]
[1746016143932,5.56730876,1796.2,1796.1,0.54467865]
[1746016144911,5.5672074,1796.3,1796.1,0.54467865]
[1746016145157,5.56730876,1796.2,1796.1,0.54467865]
[1746016146460,0.55652715,1796.8,1796.1,0.54467865]
[1746016146657,5.56671814,1796.4,1796.1,0.54467865]
[1746016146952,5.63670615,1796.3,1796.1,0.54467865]
[1746016147102,5.56730876,1796.2,1796.1,0.54467865]
[1746016147502,5.56721647,1796.3,1796.1,0.54467865]
[1746016147757,5.63681722,1796.3,1796.1,0.54467865]
[1746016148236,5.6368171,1796.3,1796.1,0.54467865]
[1746016148538,0.06960082,1796.3,1796.1,0.54467865]
[1746016148726,5.5668767,1796.4,1796.1,0.54467865]
[1746016149130,6.12212703,1796.8,1796.1,0.54467865]
[1746016149299,5.56723844,1796.3,1796.1,0.54467865]
[1746016150334,5.5668534,1796.4,1796.1,0.54467865]
[1746016150704,11.13380981,1796.4,1796.1,0.54467865]
[1746016150904,5.5668534,1796.4,1796.1,0.54467865]
[1746016151450,0.40793824,1796.5,1796.1,0.54467865]
[1746016151664,11.13388634,1796.4,1796.1,0.54467865]
[1746016151953,11.13383645,1796.4,1796.1,0.54467865]
[1746016152164,5.56689283,1796.4,1796.1,0.54467865]
[1746016152462,5.5656049,1796.8,1796.3,5.56696153]
[1746016152610,5.56579857,1796.7,1796.3,0.55669615]
[1746016152815,5.56579857,1796.7,1796.4,0.12872622]
[1746016153546,5.56637907,1796.5,1796.4,0.12872622]
[1746016153709,5.56632675,1796.6,1796.4,0.12872622]
[1746016154636,11.13264931,1796.6,1796.4,0.12872622]
[1746016154845,5.56622403,1796.6,1796.4,0.12872622]
[1746016155153,5.56637907,1796.5,1796.4,0.12872622]
[1746016155751,5.56612647,1796.6,1796.4,0.12872622]
[1746016155919,5.56637907,1796.5,1796.4,0.12872622]
[1746016156115,5.56579304,1796.7,1796.4,0.12872622]
[1746016156828,5.56576264,1796.7,1796.4,0.12872622]
[1746016157152,5.56616763,1796.6,1796.4,0.12872622]
[1746016157313,5.56576264,1796.7,1796.4,0.12872622]
[1746016157947,5.5658679,1796.7,1796.4,0.12872622]
[1746016158142,5.56618991,1796.6,1796.4,0.69828998]
[1746016158346,5.56618991,1796.6,1796.4,0.12872622]
[1746016158815,5.56576077,1796.7,1796.4,0.12872622]
[1746016159461,5.56562398,1796.8,1796.4,0.12872622]
[1746016159950,5.56531745,1796.9,1796.5,5.56635642]
[1746016160156,5.56547275,1796.8,1796.6,0.00373894]
[1746016160559,5.56532961,1796.9,1796.7,0.00367699]
[1746016160855,5.56532961,1796.9,1796.4,5.6912812]
[1746016161061,5.56532961,1796.9,1796.5,0.56912812]
[1746016161423,5.56532961,1796.9,1796.5,6.13541421]
[1746016161973,9.67640728,1797.4,1796.5,0.56912812]
[1746016162140,5.56505481,1797.0,1796.5,11.13231977]
[1746016162343,5.56505481,1797.0,1796.6,5.56597798]
[1746016162537,5.56505481,1797.0,1796.6,5.5660602]
[1746016162737,11.12945369,1797.1,1796.6,5.56585662]
[1746016163065,5.56465599,1797.1,1796.7,5.56562647]
[1746016163278,5.56435608,1797.2,1796.7,6.67877758]
[1746016163570,11.12886624,1797.2,1796.7,6.67877758]
[1746016163740,5.56435608,1797.2,1796.8,5.56540952]
[1746016163946,5.56435608,1797.2,1796.8,5.56902457]
[1746016164758,5.56435608,1797.2,1796.8,0.00361505]
[1746016164962,5.56435608,1797.2,1796.8,6.23725663]
[1746016165145,8.56297091,1797.7,1796.9,5.56511487]
[1746016165146,5.56375969,1797.4,1796.9,5.56511487]
[1746016165556,5.56328233,1797.5,1796.8,6.23710552]
[1746016165761,5.56422679,1797.2,1797.0,0.12155206]
[1746016166161,11.12808308,1797.3,1797.0,0.12155206]
[1746016166363,11.12807109,1797.3,1797.0,0.12155206]
[1746016166563,5.56392112,1797.3,1797.0,0.12155206]
[1746016166764,5.56392112,1797.3,1797.0,0.69021145]
[1746016167350,5.56392112,1797.3,1797.0,0.12155206]
[1746016167548,5.56303408,1797.6,1797.1,5.56439643]
[1746016167738,5.56339444,1797.5,1797.1,5.56439643]
[1746016167938,5.56339444,1797.5,1797.2,0.00318572]
[1746016168178,11.12697385,1797.5,1797.2,0.00318572]
[1746016168359,5.56365747,1797.4,1797.2,0.00318572]
[1746016168561,5.56365747,1797.4,1797.0,0.11824253]
[1746016168562,5.56399457,1797.3,1797.0,0.11824253]
[1746016168766,5.56399457,1797.3,1797.0,0.68657571]
[1746016169357,5.56425588,1797.2,1797.0,0.68657571]
[1746016169670,5.56425588,1797.2,1797.0,0.11824253]
[1746016170182,5.56425588,1797.2,1796.8,6.23365035]
[1746016170407,11.12876149,1797.2,1796.8,0.66823926]
[1746016170543,5.56425588,1797.2,1796.8,6.23353375]
[1746016170879,5.56425588,1797.2,1796.8,0.66823926]
[1746016171372,5.56466907,1797.1,1796.9,0.00337145]
[1746016172459,5.56466907,1797.1,1796.7,5.56569282]
[1746016172659,5.56435789,1797.2,1797.0,0.00330953]
[1746016172864,5.564535,1797.1,1796.8,0.55656928]
[1746016173558,5.98417433,1797.3,1796.8,6.12199676]
[1746016173758,5.56404311,1797.3,1796.8,6.12199676]
[1746016173974,5.56425937,1797.2,1796.9,0.61219968]
[1746016175201,11.1287576,1797.2,1796.9,0.61219968]
[1746016175377,5.56425937,1797.2,1796.8,0.55656928]
[1746016175579,11.12870563,1797.2,1796.8,0.55656928]
[1746016175797,5.56407718,1797.3,1796.8,6.12180228]
[1746016176194,5.56407718,1797.3,1796.8,11.68714838]
[1746016176505,5.56424824,1797.2,1796.8,6.12180228]
[1746016176680,5.56424824,1797.2,1796.9,0.61218023]
[1746016176882,5.56424824,1797.2,1796.8,6.12201855]
[1746016177069,5.56407119,1797.3,1796.8,6.12201855]
[1746016177269,5.56407119,1797.3,1796.9,5.56504784]
[1746016177718,11.12763649,1797.4,1796.9,5.56492486]
[1746016177960,5.56390361,1797.3,1796.9,5.56492486]
[1746016178231,5.56390361,1797.3,1797.0,0.55649249]
[1746016178376,3.0,1797.9,1797.0,0.55649249]
[1746016178712,0.06954993,1797.8,1796.6,18.368]
[1746016179871,0.41111555,1797.8,1796.6,18.368]
[1746016180071,0.06954881,1797.7,1796.6,18.368]
[1746016180410,0.06954881,1798.0,1796.6,18.368]
[1746016180611,0.40220844,1798.0,1796.7,1.9494092]
[1746016181107,0.40220844,1798.0,1796.8,0.01424056]
[1746016181408,0.40220844,1798.0,1796.9,0.11222445]
[1746016182986,1.01280586,1798.0,1796.9,0.11222445]
[1746016185212,1.43598764,1798.0,1796.9,0.11222445]
[1746016185378,1.43598764,1798.0,1796.9,1.96004689]
[1746016188005,0.82539022,1798.0,1796.9,1.96004689]
[1746016189829,0.49273059,1798.0,1796.9,1.96004689]
[1746016193070,0.49273059,1798.0,1797.0,0.01422748]
[1746016193457,0.06954881,1798.0,1797.1,0.11117965]
[1746016193635,0.06954153,1797.9,1797.1,0.11117965]
[1746016193971,0.06954054,1798.1,1797.1,0.11117965]
[1746016194167,0.37649459,1798.1,1797.1,0.11117965]
[1746016194472,0.37649459,1798.1,1797.2,0.1107455]
[1746016194969,0.37649459,1798.1,1796.9,1.84782244]
[1746016195272,0.37649459,1798.1,1797.0,0.11381405]
[1746016198278,0.37649459,1798.1,1797.1,0.01421796]
[1746016198433,0.37649459,1798.1,1797.0,0.11381405]
[1746016198633,0.06954054,1798.1,1797.1,0.01421719]
[1746016198846,0.06953675,1798.0,1797.2,0.11381405]
[1746016199078,0.06953675,1798.2,1797.2,0.11381405]
[1746016200240,0.06953425,1798.4,1797.2,0.11381405]
[1746016200568,0.06953425,1798.4,1797.3,0.55]
[1746016200776,3.70957153,1798.6,1797.7,3.55]
[1746016200934,3.70957153,1798.6,1797.9,3.0]
[1746016201134,3.70957153,1798.6,1798.0,8.83013359]
[1746016201359,3.70957153,1798.6,1798.1,18.364]
[1746016202369,3.70957153,1798.6,1798.2,0.01414757]
[1746016202542,3.70957153,1798.6,1798.2,1.85196233]
[1746016202749,3.70957153,1798.6,1798.2,1.83781476]
[1746016202972,3.0,1798.4,1797.3,0.36638141]
[1746016203179,0.06951918,1798.3,1797.0,0.01418128]
[1746016203347,1.42306061,1798.3,1796.8,18.36]
[1746016203550,0.06951918,1798.3,1797.3,0.01420539]
[1746016203758,0.06953124,1798.4,1797.3,0.01420539]
[1746016203944,0.06953124,1798.4,1797.2,0.12799966]
[1746016204151,0.06953124,1798.4,1797.3,0.55]
[1746016204550,0.37648436,1798.4,1797.2,0.12799966]
[1746016204871,0.37648436,1798.4,1797.3,0.55]
[1746016205241,0.06953124,1798.4,1797.3,0.55]
[1746016205443,0.06951983,1798.8,1797.3,0.55]
[1746016206680,0.06951983,1798.8,1797.4,0.01418259]
[1746016206892,3.0,1798.7,1797.4,0.01418259]
[1746016207043,0.06951951,1798.6,1797.3,0.56418193]
[1746016207373,0.37647146,1798.6,1797.3,0.56418193]
[1746016207880,0.37647146,1798.6,1797.2,0.12799592]
[1746016208088,0.37647146,1798.6,1797.3,0.55]
[1746016208687,0.06951951,1798.6,1797.4,0.01418345]
[1746016208868,0.06951603,1798.8,1797.4,0.01418345]
[1746016209792,0.06951603,1798.8,1797.2,3.11381405]
[1746016209793,4.05411221,1798.8,1797.2,0.11381405]
[1746016209978,5.55976994,1798.7,1797.2,0.11381405]
[1746016210297,3.62550313,1798.6,1797.2,0.11381405]
[1746016210676,0.55,1798.2,1797.2,0.11381405]
[1746016210993,3.0,1798.0,1797.2,0.11381405]
[1746016211166,0.06954549,1797.9,1797.2,0.11381405]
[1746016212186,5.56203615,1798.0,1797.2,0.11381405]
[1746016212395,0.55,1797.8,1797.2,0.11381405]
[1746016212610,3.06956083,1797.7,1797.2,0.11381405]
[1746016212766,3.0,1797.7,1797.2,0.11381405]
[1746016212970,3.0,1797.4,1797.2,0.11381405]
[1746016213291,3.0,1797.4,1796.1,0.4132522]
[1746016213292,5.63374979,1797.3,1796.1,0.4132522]
[1746016213459,5.93374979,1797.3,1796.1,0.4132522]
[1746016213657,0.55,1796.9,1796.1,0.3632522]
[1746016213886,0.55,1796.9,1795.1,8.02464598]
[1746016213887,5.56803368,1796.0,1795.1,8.08032883]
[1746016214199,0.06961892,1795.9,1795.1,8.02464598]
[1746016214405,0.26185949,1796.6,1795.2,0.76880922]
[1746016214567,0.26185949,1796.6,1795.2,1.25207352]
[1746016214568,3.0,1796.3,1795.2,1.25207352]
[1746016214754,0.06961384,1796.2,1795.1,8.02464598]
[1746016214958,0.37657522,1796.2,1795.2,0.8024646]
[1746016215158,0.06960394,1796.7,1795.3,0.88063057]
[1746016215399,0.06960394,1796.7,1795.4,0.55]
[1746016215699,0.06960394,1796.7,1795.4,0.05567167]
[1746016215899,0.41779811,1797.6,1796.3,0.55]
[1746016216104,5.56211787,1797.9,1796.4,18.363]
[1746016216472,14.82879455,1798.7,1796.5,3.60564751]
[1746016216670,5.56080742,1798.3,1796.5,3.60564751]
[1746016216871,3.0,1797.8,1796.4,18.363]
[1746016217080,3.70957153,1796.9,1796.5,1.8919447]
[1746016217283,3.70957153,1796.9,1796.5,1.8363]
[1746016218397,3.70957153,1796.9,1796.5,4.8363]
[1746016218398,0.09781096,1796.9,1796.5,4.8363]
[1746016218715,0.09781096,1796.9,1796.5,1.8363]
[1746016219277,3.0,1797.9,1796.5,1.89194255]